Cogmind - Beta 17.1 @@@ ROGUE MODE // 2026.09.11 @ 15:44:04 Player: Scuttle Result: Destroyed by P-80 Master with Gamma Rifle Performance ------------- Evolutions (7) 3500 Regions Visited (29) 5800 Robots Destroyed (455) 2275 Value Destroyed (20566) 20566 Prototype IDs (53) 1060 Alien Tech Used (2) 400 Bonus (7191) 7191 TOTAL SCORE: 40792 Bonus ------- High Alert Combat Kills 3627 Follower Combat Kills 1444 Entered Garrisons 200 Entered DSFs 500 Met Data Miner 300 Acquired ECA 300 Met Zhirov 300 Met Warlord at Base 500 MAIN.C Attacked Warlord 500 Warlord Defense Kills 2136 Friendly Fire -2616 Cogmind --------- Core Integrity 0/1300 Matter 287/300 Energy 180/180 System Corruption 24% Temperature Cool (-200) Movement Rolling (170) Ox6 Location -3/Research Parts ------- > --- POWER (1) -------- Light Particle Reactor > --- PROPULSION (2) --- Biometal Leg Wheel > --- UTILITY (4) ------ Advanced Cryofiber Web Advanced Heat Sink Large Storage Unit Advanced Targeting Computer > --- WEAPON (14) ------ Heavy Dispersion Rifle Heavy Dispersion Rifle Heavy Dispersion Rifle Heavy Dispersion Rifle Compact Mass Driver > --- INVENTORY (15) --- Experimental Power Amplifier Advanced Heat Sink Experimental Energy Well (600) Improved Matter Compressor (300) Matter Filter Experimental Hacking Suite High-powered Tractor Beam BFG-9k Vortex Edition (15) Mini Smartbomb Launcher Peak State ------------ > --- POWER ------------ Micro Antimatter Reactor > --- PROPULSION ------- High-density Centrium Wheel High-density Centrium Wheel > --- UTILITY ---------- Advanced Coolant Injector Large Storage Unit Experimental Energy Well Advanced Salvage Targeting Computer > --- WEAPON ----------- Gamma Rifle Field Laser BFG-9k Vortex Edition Railgun > --- INVENTORY -------- Experimental Power Amplifier Improved Matter Compressor Matter Filter High-powered Tractor Beam Gamma Bomb Array Mini Smartbomb Launcher [Rating: 148] Favorites ----------- Power Cooled Ion Engine Engine Cooled Ion Engine Power Core Light Nuclear Core Reactor Light Quantum Reactor Propulsion Light Treads Treads Light Treads Leg Myomer Leg Wheel Armored Huge Wheel Hover Unit Backup Propulsion III Utility Large Storage Unit Device Improved Heat Sink Storage Large Storage Unit Processor Advanced Salvage Targeting Computer Hackware Advanced Hacking Suite Protection Hardened Medium Armor Plating Weapon KE Penetrator Energy Gun Cooled Plasma Rifle Energy Cannon BFG-9k Vortex Edition Ballistic Gun KE Penetrator Ballistic Cannon Heavy Mass Driver Launcher Mini Smartbomb Launcher Special Weapon Improved Remote Datajack Slashing Weapon Great Axe Build | -11 -10 -10 -10 -9 -8 -7 -7 -7 -7 -7 -7 -7 -7 -6 -6 -6 -5 -5 -5 -5 -5 -5 -4 -4 -4 -4 -4 -3 -3 ------- Run | Yrd Mat Min Exi Min Mat Fac Was Fac Gar Fac Low Low Dat Pro Fac DSF Fac Was Fac Upp Upp Zhi Pro Fac Upp Upp War Pro Res Slots Evolved 14 | . . . . . 4 2 . . . . . . . . 2 . 2 . . . . . . 2 . . . . 2 Power . | . . . . . . . . . . . . . . . . . . . . . . . . . . . . . . Propulsion . | . . . . . . . . . . . . . . . . . . . . . . . . . . . . . . Utility 2 | . . . . . 2 . . . . . . . . . . . . . . . . . . . . . . . . Weapon 12 | . . . . . 2 2 . . . . . . . . 2 . 2 . . . . . . 2 . . . . 2 Parts Attached 270 | 5 6 4 . . 33 22 7 . 10 4 1 . . . . 5 43 3 14 . . 3 1 8 4 1 9 12 75 Power 37 | 1 2 1 . . 4 3 . . . 1 . . . . . 1 3 1 . . . 1 . 2 . . 3 2 12 Engine 9 | 1 1 . . . 2 2 . . . 1 . . . . . 1 1 . . . . . . . . . . . . Core 8 | . 1 1 . . 2 1 . . . . . . . . . . 1 . . . . . . . . . 2 . . Reactor 20 | . . . . . . . . . . . . . . . . . 1 1 . . . 1 . 2 . . 1 2 12 Propulsion 39 | 2 1 . . . 7 3 1 . . . . . . . . . 5 1 . . . . . 1 . . . 2 16 Treads 16 | 2 1 . . . 7 3 1 . . . . . . . . . 1 1 . . . . . . . . . . . Leg 5 | . . . . . . . . . . . . . . . . . . . . . . . . . . . . . 5 Wheel 18 | . . . . . . . . . . . . . . . . . 4 . . . . . . 1 . . . 2 11 Hover . | . . . . . . . . . . . . . . . . . . . . . . . . . . . . . . Flight . | . . . . . . . . . . . . . . . . . . . . . . . . . . . . . . Utility 63 | . 2 1 . . 13 7 3 . 1 1 1 . . . . 1 9 . 2 . . 2 1 1 . . 2 1 15 Device 38 | . 1 1 . . 8 5 2 . . . 1 . . . . . 8 . . . . . 1 1 . . 2 1 7 Storage 6 | . 1 . . . 1 . . . . . . . . . . . . . 2 . . 1 . . . . . . 1 Processor 8 | . . . . . . . . . 1 . . . . . . 1 . . . . . . . . . . . . 6 Hackware 1 | . . . . . . . . . . . . . . . . . 1 . . . . . . . . . . . . Protection 10 | . . . . . 4 2 1 . . 1 . . . . . . . . . . . 1 . . . . . . 1 Artifact . | . . . . . . . . . . . . . . . . . . . . . . . . . . . . . . Weapon 131 | 2 1 2 . . 9 9 3 . 9 2 . . . . . 3 26 1 12 . . . . 4 4 1 4 7 32 Energy Gun 47 | 1 1 2 . . 5 3 2 . . . . . . . . . 4 . 5 . . . . . . 1 2 4 17 Energy Cannon 5 | . . . . . . . . . . . . . . . . . . . 2 . . . . . . . 1 2 . Ballistic Gun 59 | 1 . . . . 3 3 1 . 4 1 . . . . . 3 21 1 5 . . . . 4 . . 1 1 10 Ballistic Cannon 12 | . . . . . . . . . 3 1 . . . . . . . . . . . . . . 3 . . . 5 Launcher 5 | . . . . . 1 1 . . 1 . . . . . . . 1 . . . . . . . 1 . . . . Special Weapon 1 | . . . . . . 1 . . . . . . . . . . . . . . . . . . . . . . . Impact Weapon . | . . . . . . . . . . . . . . . . . . . . . . . . . . . . . . Slashing Weapon 2 | . . . . . . 1 . . 1 . . . . . . . . . . . . . . . . . . . . Piercing Weapon . | . . . . . . . . . . . . . . . . . . . . . . . . . . . . . . Special Melee Weapon . | . . . . . . . . . . . . . . . . . . . . . . . . . . . . . . Unidentified Prototypes 29 | . . . . . 1 2 1 . . 2 . . . . . . 1 . 7 . . 4 . . 1 . 3 1 6 Parts Lost 98 | . . 1 . . 7 4 . . . . . . . . . . 12 . . . . . 1 3 4 1 2 18 45 Power 13 | . . . . . 1 1 . . . . . . . . . . 1 . . . . . . 2 . . 1 1 6 Propulsion 16 | . . . . . 3 . . . . . . . . . . . 2 . . . . . . . . . . 1 10 Utility 6 | . . . . . . 1 . . . . . . . . . . . . . . . . 1 . . . . 1 3 Weapon 63 | . . 1 . . 3 2 . . . . . . . . . . 9 . . . . . . 1 4 1 1 15 26 Highest Loss Streak 12 | . . 1 . . 3 3 . . . . . . . . . . 4 . . . . . 1 1 1 1 2 12 10 To Critical Strikes 1 | . . . . . . . . . . . . . . . . . . . . . . . . . . . . . 1 Average Backups 11 | 1 6 11 11 11 11 13 14 13 12 13 13 13 13 13 13 12 12 14 14 14 14 13 13 12 13 12 11 9 8 Power . | . 1 1 1 1 1 1 1 1 1 1 1 1 1 1 1 1 . 1 1 1 1 1 1 . . . . . . Propulsion 1 | . . 4 4 4 4 4 3 3 1 1 1 1 1 1 1 1 . . 1 1 1 1 1 1 3 3 2 1 . Utility 4 | . 1 4 5 5 3 2 4 4 4 4 4 4 4 4 4 4 7 8 8 8 8 7 6 5 6 6 5 4 5 Weapon 4 | . 2 1 1 1 2 4 5 5 5 7 7 7 7 7 7 6 4 5 4 4 4 4 4 4 3 3 3 2 2 Tool/Special . | . . . . . . . . . . . . . . . . . . . . . . . . . . . . . . Unused Backups 33 | . . . . . 3 1 4 . 6 1 . . . . . 1 2 1 4 . . 2 . . . . 2 1 5 Power 3 | . . . . . 1 . . . . . . . . . . . . 1 . . . . . . . . . . 1 Propulsion 5 | . . . . . . . 2 . 2 . . . . . . . . . . . . . . . . . 1 . . Utility 15 | . . . . . 1 1 1 . 1 . . . . . . . 1 . 3 . . 2 . . . . 1 1 3 Weapon 10 | . . . . . 1 . 1 . 3 1 . . . . . 1 1 . 1 . . . . . . . . . 1 Tool/Special . | . . . . . . . . . . . . . . . . . . . . . . . . . . . . . . Average Slot Usage (%) 82 | . 93 99 100 100 98 96 95 92 86 68 69 69 52 69 60 62 88 91 93 94 94 41 94 81 89 76 78 69 53 Engine 3 | . 7 2 . . 7 7 7 7 7 7 7 7 7 7 6 6 3 . . . . . . . . . . . . Core 1 | . 6 11 14 14 1 . . . . . . . . . . . . . . . . . . . . . . 3 . Reactor 1 | . . . . . . . . . . . . . . . . . 1 4 5 5 5 5 5 5 5 5 4 1 3 Treads 8 | . 27 28 28 28 17 15 10 7 7 7 7 7 7 7 6 6 3 4 5 5 5 5 5 1 . . . . . Wheel 1 | . . . . . . . . . . . . . . . . . 2 2 . . . . . 3 5 5 5 5 6 Device 10 | . 12 14 14 14 17 15 18 15 15 15 15 15 15 15 13 6 4 5 4 5 5 4 5 5 5 5 5 5 5 Storage 6 | . 9 14 14 14 9 7 7 7 7 7 7 7 7 7 6 6 5 5 5 5 5 5 5 5 5 5 5 5 4 Processor 5 | . . . . . . . . . 1 7 7 7 7 7 6 12 11 11 11 11 11 11 11 10 10 10 10 9 5 Protection 1 | . . . . . 8 6 3 7 5 . . . . . . . . . . . . . . . . . . . . Energy Gun 14 | . 14 26 28 28 17 17 23 23 17 . . . 1 . . . 6 5 6 29 29 2 29 26 20 13 15 21 11 Ballistic Gun 17 | . 14 . . . 16 23 22 23 17 . . . . . . 8 41 47 50 29 29 3 29 23 23 15 15 8 6 Ballistic Cannon 5 | . . . . . . . . . 5 22 23 23 5 23 20 14 . . . . . . . . 11 15 14 6 4 Peak Build Rating 148 | 5 9 13 12 12 32 44 64 63 74 73 74 73 73 73 73 77 82 97 116 116 116 115 115 115 112 96 107 112 148 Average Rating 68 | 3 7 11 12 12 28 38 56 63 66 72 73 73 42 73 73 67 72 88 105 116 116 57 114 104 104 87 91 79 80 On Entrance 66 | . 5 8 12 12 12 32 42 63 63 73 73 73 73 73 73 73 59 77 96 116 116 116 115 115 109 90 83 96 42 Avg Prop Armor Cover (%) 6 | . . . . . . . . . . . . . . . . . . . . . . . . . . . . . 6 Naked Turns . | . . . . . . . . . . . . . . . . . . . . . . . . . . . . . . Heaviest Build 105 | 8 29 30 29 29 50 62 66 66 93 93 93 93 93 93 93 93 78 78 86 86 86 83 83 91 105 95 95 91 103 Greatest Support 75 | 40 40 40 40 40 43 43 70 70 70 70 70 70 70 70 70 70 70 75 75 75 75 75 75 75 28 28 28 32 56 Greatest Overweight (x) 13 | . . . . . 1 1 1 . 1 1 1 1 1 1 1 1 4 2 1 1 1 1 1 3 3 3 3 3 13 Average Overweight (x) 1 | . . . . . . 1 . . . 1 1 1 . 1 1 . . . 1 1 1 . 1 1 3 3 2 2 2 Largest Inventory Capacity 15 | 5 15 15 15 15 15 15 15 15 15 15 15 15 15 15 15 15 15 15 15 15 15 15 15 15 15 15 15 15 15 Average Capacity 14 | 5 11 15 15 15 15 15 15 15 15 15 15 15 15 15 15 15 15 15 15 15 15 15 15 15 15 15 15 15 15 Most Carried 15 | 2 12 12 11 11 15 15 15 15 15 15 15 15 15 15 15 15 15 15 15 15 15 15 15 15 15 14 15 15 15 Average Carried 13 | 1 6 11 11 11 11 13 14 15 14 15 15 15 15 15 15 14 13 14 14 15 15 14 14 13 14 13 14 13 13 Final Capacity 15 | 5 15 15 15 15 15 15 15 15 15 15 15 15 15 15 15 15 15 15 15 15 15 15 15 15 15 15 15 15 15 Final Carried 15 | 2 12 11 11 11 13 15 15 15 15 15 15 15 15 15 15 14 15 15 15 15 15 15 14 15 14 14 15 12 14 Class Distribution -------------------- 30% | Executioner 28% | Scavenger-Executioner 12% | Pyromaniac-Executioner 7% | Mutant 5% | Scavenger-Mutant 4% | Scavenger-Tank 4% | Tank Dominant Class ---------------- Mutant | -10/Materials Scavenger-Mutant | -10/Mines Scavenger-Mutant | -10/Exiles Scavenger-Mutant | -9/Mines Tank | -8/Materials Scavenger-Executioner | -7/Factory Executioner | -7/Waste Executioner | -7/Factory Executioner | -7/Garrison Executioner | -7/Factory Executioner | -7/Lower Caves Executioner | -7/Lower Caves Mutant | -7/Data Miner Executioner | -6/Proximity Caves Executioner | -6/Factory Executioner | -6/DSF Scavenger-Executioner | -5/Factory Scavenger-Executioner | -5/Waste Scavenger-Executioner | -5/Factory Pyromaniac-Executioner | -5/Upper Caves Pyromaniac-Executioner | -5/Upper Caves Mutant | -5/Zhirov Pyromaniac-Executioner | -4/Proximity Caves Pyromaniac-Executioner | -4/Factory Executioner | -4/Upper Caves Executioner | -4/Upper Caves Executioner | -4/Warlord Scavenger-Executioner | -3/Proximity Caves Scavenger-Executioner | -3/Research Resources | -11 -10 -10 -10 -9 -8 -7 -7 -7 -7 -7 -7 -7 -7 -6 -6 -6 -5 -5 -5 -5 -5 -5 -4 -4 -4 -4 -4 -3 -3 ----------- Run | Yrd Mat Min Exi Min Mat Fac Was Fac Gar Fac Low Low Dat Pro Fac DSF Fac Was Fac Upp Upp Zhi Pro Fac Upp Upp War Pro Res Matter Collected 15705 | 61 634 50 . . 1214 882 216 . 922 234 51 237 . 165 . 417 2908 193 1383 104 94 . 455 748 394 175 555 294 3319 Remotely 2660 | . . . . . . . . . . . . . . . . . 688 78 370 . . . 196 419 313 70 288 . 238 Salvage Created 22445 | . 578 71 . 30 3198 1610 167 50 1043 259 . 190 . 129 . 467 3643 160 1296 70 189 . 625 2004 358 70 1017 1111 4110 Parts 1058 | . 54 4 . 4 165 80 14 4 38 10 . 2 . 1 . 15 209 9 67 2 9 . 25 89 10 1 36 44 166 Haulers Intercepted 18 | . 2 . . . 5 1 . . . 1 . . . . . . 3 . 3 . . . . . . . . . 3 Recyclers Shooed 6 | . . . . . 2 . . . . . . . . . . . . . 1 . . . . . . . . . 3 Parts Field Recycled . | . . . . . . . . . . . . . . . . . . . . . . . . . . . . . . Retrieved Matter . | . . . . . . . . . . . . . . . . . . . . . . . . . . . . . . Parts Self-Destructed 115 | . . . . . . . . . . . 10 8 . 5 . . . . . 6 13 . 25 . 9 1 . 38 . Prevented 4 | . . . . . . . . . . . . . . 4 . . . . . . . . . . . . . . . Parts Restored . | . . . . . . . . . . . . . . . . . . . . . . . . . . . . . . Kills | -11 -10 -10 -10 -9 -8 -7 -7 -7 -7 -7 -7 -7 -7 -6 -6 -6 -5 -5 -5 -5 -5 -5 -4 -4 -4 -4 -4 -3 -3 ------- Run | Yrd Mat Min Exi Min Mat Fac Was Fac Gar Fac Low Low Dat Pro Fac DSF Fac Was Fac Upp Upp Zhi Pro Fac Upp Upp War Pro Res Combat Hostiles Destroyed 351 | . 15 2 . 2 52 23 . 1 21 6 . 5 . 3 . 11 51 . 13 1 3 . 13 21 11 2 18 18 59 Guns 243 | . 15 2 . 2 47 19 . 1 16 . . . . . . . 39 . 13 1 3 . 13 19 4 1 3 12 33 Cannons 43 | . . . . . . . . . 3 6 . 5 . 3 . 8 . . . . . . . . . . 2 5 11 AOE 58 | . . . . . 4 4 . . . . . . . . . 3 12 . . . . . . . 7 1 12 1 14 Classes Destroyed 23 | . 5 . . . 9 2 1 . 2 . . . . . . 1 2 . . . . . 1 . . . . . . Worker 18 | . 2 . . . 1 3 . . . . . . . . . . 7 . . . . . . 1 . . . . 4 Builder 10 | . . . . . 3 3 . . . . . . . . . . 1 . . . . . . . . . . . 3 Tunneler 3 | . . . . . 2 . . . . . . . . . . . 1 . . . . . . . . . . . . Hauler 18 | . 2 . . . 5 1 . . . 1 . . . . . . 3 . 3 . . . . . . . . . 3 Recycler 20 | . . . . . 6 6 . . . . . . . . . . 1 . . . . . . 2 . . . . 5 Mechanic 2 | . . . . . 1 . . . . . . . . . . . 1 . . . . . . . . . . . . Operator 4 | . . . . . 1 . . . . . . . . . . . 2 . . . . . . 1 . . . . . Drone 1 | . . . . . . . . . . . . . . . . . . . . . . . 1 . . . . . . Watcher 17 | . 2 . . . 5 1 . . . . . . . . . . 5 . . . . . . 1 . . . . 3 Swarmer 73 | . 6 . . 2 11 4 . . 3 1 . 1 . . . 4 13 . . . . . 7 2 4 . 4 2 9 Cutter 4 | . . . . . . . . . 1 . . . . . . . . . . . . . . . . . . . 3 Saboteur 2 | . . . . . . . . . . . . . . . . . 2 . . . . . . . . . . . . Grunt 151 | . 9 2 . . 23 9 . . 12 2 . . . 3 . 2 19 . 6 . 3 . 3 12 5 2 9 9 21 Brawler 10 | . . . . . 1 2 . . . 1 . . . . . . 2 . . . . . . . . . 1 2 1 Duelist 14 | . . . . . 3 2 . . . . . 2 . . . . 1 . . . . . . 1 1 . . 1 3 Protector 3 | . . . . . . 1 . . . . . . . . . . 1 . . . . . . . . . 1 . . Sentry 24 | . . . . . 6 2 . . 3 1 . 1 . . . 2 2 . 3 . . . 1 . 1 . . 1 1 Demolisher 1 | . . . . . . . . . . . . . . . . . . . . . . . . . . . 1 . . Specialist 13 | . . . . . 8 . . . . . . 1 . . . 2 . . . . . . . . . . 2 . . Hunter 18 | . . . . . . . . . . . . . . . . . 9 . . 1 . . . 2 . . . . 6 Programmer 34 | . . . . . . 3 . 1 1 1 . 1 . . . . 2 . 3 . . . 1 4 . . . 2 15 Heavy 2 | . . . . . . . . . . . . . . . . 1 . . 1 . . . . . . . . . . Behemoth 2 | . . . . . . . . . 1 . . . . . . . . . . . . . . . . . . 1 . Surgeon 1 | . . . . . . . . . 1 . . . . . . . . . . . . . . . . . . . . Wasp 1 | . . . . . . . . . 1 . . . . . . . . . . . . . . . . . . . . Thug 2 | . . . . . . . . . 1 . . . . . . . . . . . . . . . . . 1 . . Bouncer 1 | . . . . . . . . . . . . . . . . . . . . . . . . . . . 1 . . Martyr 5 | . . . . . . . 3 . . . . . . . . . . 2 . . . . . . . . . . . Commander 1 | . . . . . . . . . . . . . . . . . . . . . . . . . . . 1 . . Best Kill Streak 14 | . 5 2 . 2 11 14 . 1 7 3 . 3 . 1 . 4 12 . 5 1 3 . 8 5 5 2 7 11 8 Combat Bots Only 11 | . 5 2 . 2 6 11 . 1 7 2 . 3 . 1 . 4 8 . 5 1 3 . 8 4 5 2 7 11 6 Max Kills in Single Turn 5 | . 2 1 . 1 3 2 1 1 2 2 . 2 . 1 . 3 4 1 3 1 2 . 3 2 2 1 5 3 4 Gunslinging 2 | . 1 . . . 1 . . . 1 . . . . . . . 1 . 1 . . . 2 1 . . . 2 . Exploded 5 | . . . . . 2 2 . . . . . . . . . 3 4 . . . . . . . 1 1 5 1 3 Melee . | . . . . . . . . . . . . . . . . . . . . . . . . . . . . . . Uniques/NPCs Destroyed . | . . . . . . . . . . . . . . . . . . . . . . . . . . . . . . Combat | -11 -10 -10 -10 -9 -8 -7 -7 -7 -7 -7 -7 -7 -7 -6 -6 -6 -5 -5 -5 -5 -5 -5 -4 -4 -4 -4 -4 -3 -3 -------- Run | Yrd Mat Min Exi Min Mat Fac Was Fac Gar Fac Low Low Dat Pro Fac DSF Fac Was Fac Upp Upp Zhi Pro Fac Upp Upp War Pro Res Hostile Shots Fired 1752 | . 79 13 . 19 199 104 . . 160 20 9 60 . 1 . 70 205 . 12 3 . . 50 97 47 10 34 112 448 Missed 516 | . 14 4 . 9 66 29 . . 61 7 1 27 . . . 22 57 . 3 1 . . 17 27 13 1 14 25 118 Hits 1236 | . 65 9 . 10 133 75 . . 99 13 8 33 . 1 . 48 148 . 9 2 . . 33 70 34 9 20 87 330 Melee 23 | . . . . . 1 2 . . 1 . . 1 . . . . . . . . . . . 2 . . . 4 12 Projectile 1213 | . 65 9 . 10 132 73 . . 98 13 8 32 . 1 . 48 148 . 9 2 . . 33 68 34 9 20 83 318 AOE 2 | . . . . . . . . . . . . . . . . . . . . . . . . . . . . . 2 Critical Strikes 62 | . 1 1 . 1 6 4 . . 2 . . 1 . . . 1 2 . . . . . 1 4 . 1 . 6 31 Part Disruptions 3 | . . . . . . 1 . . . . . . . . . . 1 . . . . . . . . . . . 1 Damage Taken 22862 | . 674 126 . 87 1802 1139 51 . 1428 146 62 469 . 19 . 970 2799 . 186 32 . . 611 1491 703 188 371 2002 7506 Core 3019 | . 151 28 . 16 120 113 . . 130 16 . 60 . . . 30 268 . 19 . . . 45 201 66 69 . 373 1314 Absorbed by Shields 186 | . . . . . 148 24 . . . 14 . . . . . . . . . . . . . . . . . . . Reduced by Siege Mode 102 | . . . . . . . . . 36 . . . . . . 39 . . . . . . . 27 . . . . . Regen/Repaired (Parts) 2592 | . 133 . . . . . 177 . 731 32 20 128 . . . 731 . 7 15 . . . . 165 . . 310 . 143 Core Remaining (%) 63 | 100 . . . 22 78 . . . . . . . . 54 . 96 . . . . . . 66 . . . . 30 . Volleys Fired 765 | . 60 7 . 2 122 54 5 1 82 7 1 8 . 5 . 16 80 2 16 3 3 . 11 30 12 7 19 37 175 Largest 12 | . 2 2 . 2 4 6 6 6 6 3 3 3 . 3 . 3 10 10 10 10 10 . 10 12 11 8 7 10 8 Hottest 564 | . 60 105 . 90 163 209 253 305 310 195 195 195 . 195 . 195 357 338 407 395 395 . 395 442 419 341 359 478 564 Shots Fired 3395 | . 120 14 . 4 470 266 31 6 303 22 3 24 . 15 . 42 583 20 161 31 26 . 111 282 41 15 63 164 578 Gun 3120 | . 120 14 . 4 467 261 31 6 281 . . . . . . . 573 20 161 31 26 . 111 282 26 6 38 146 516 Cannon 218 | . . . . . . . . . 20 22 3 24 . 15 . 39 . . . . . . . . 6 5 20 15 49 Launcher 56 | . . . . . 3 4 . . 2 . . . . . . 3 10 . . . . . . . 9 4 5 3 13 Special 1 | . . . . . . 1 . . . . . . . . . . . . . . . . . . . . . . . Kinetic 1996 | . 60 1 . . 233 165 16 3 163 22 3 24 . 15 . 39 494 18 139 15 15 . 57 142 21 6 36 57 252 Thermal 1306 | . 60 13 . 4 234 96 15 3 138 . . . . . . . 79 2 22 16 11 . 54 140 11 5 20 95 288 Explosive 56 | . . . . . 3 4 . . 2 . . . . . . 3 10 . . . . . . . 9 4 5 3 13 Electromagnetic 19 | . . . . . . . . . . . . . . . . . . . . . . . . . . . . . 19 Entropic 17 | . . . . . . . . . . . . . . . . . . . . . . . . . . . 2 9 6 Robot Hit Streak 23 | . 9 11 . 4 23 12 5 1 22 6 . 6 . 3 . 7 17 9 12 3 3 . 8 19 4 1 8 9 11 Robot Miss Streak 11 | . 5 1 . . 6 5 2 . 4 3 3 8 . 5 . 5 6 1 3 6 5 . 10 6 3 3 4 4 11 Penetration Max 2 | . . . . . . . . . 1 . . 1 . . . . 1 . 1 . 1 . 1 1 1 . 2 1 2 Secondary Targets 61 | . 2 1 . . 10 5 . . 5 . . . . . . . 12 . 3 . 1 . 5 7 . . . 4 6 Max Gunslinging Chain 2 | . 1 1 . . 2 1 . . 1 . . . . . . . 2 . 2 . 1 . 2 1 . . . 2 1 Shots Hit Robots 1780 | . 79 11 . 2 275 146 17 1 139 10 . 10 . 5 . 19 300 14 75 10 7 . 36 130 7 1 32 108 346 Core Hits 968 | . 32 5 . 2 132 71 9 1 51 5 . 4 . 3 . 15 178 9 34 4 6 . 20 67 35 6 52 52 175 Critical Kills 28 | . . . . . 1 . . . 1 . . . . . . . 2 1 1 . 1 . 2 3 . . 5 1 10 Critical Parts Destroyed 43 | . . . . . . 1 . . 4 . . . . . . . 3 . 2 . . . 1 4 . . 4 . 24 Critical Strikes 140 | . . . . . 10 3 . . 9 4 . 3 . . . 3 9 1 5 . 1 . 7 17 . . 12 13 43 Burn 48 | . . . . . 9 2 . . 2 . . . . . . . 4 . 1 . . . 4 10 . . 3 9 4 Destroy 76 | . . . . . 1 1 . . 7 . . . . . . . 5 1 4 . 1 . 3 7 . . 9 1 36 Blast 10 | . . . . . . . . . . 4 . 3 . . . 3 . . . . . . . . . . . . . Sunder 6 | . . . . . . . . . . . . . . . . . . . . . . . . . . . . 3 3 Melee Attacks 1 | . . . . . . 1 . . . . . . . . . . . . . . . . . . . . . . . Impact . | . . . . . . . . . . . . . . . . . . . . . . . . . . . . . . Slashing 1 | . . . . . . 1 . . . . . . . . . . . . . . . . . . . . . . . Piercing . | . . . . . . . . . . . . . . . . . . . . . . . . . . . . . . Sneak Attacks . | . . . . . . . . . . . . . . . . . . . . . . . . . . . . . . Combat Hostiles . | . . . . . . . . . . . . . . . . . . . . . . . . . . . . . . Follow-up Attacks . | . . . . . . . . . . . . . . . . . . . . . . . . . . . . . . Damage Inflicted 58279 | . 967 138 . 28 5364 3627 350 26 3870 766 . 822 . 310 . 1948 7541 339 1841 243 303 . 1027 3938 1837 321 3117 4633 14923 Guns 37987 | . 952 138 . 28 4815 2641 350 26 3450 . . . . . . . 5750 339 1836 243 303 . 1027 3912 237 18 668 2383 8871 Cannons 8781 | . . . . . . . . . 315 766 . 822 . 310 . 1419 . . . . . . . . . . 253 1527 3369 Explosions 11439 | . . . . . 537 986 . . 95 . . . . . . 529 1773 . . . . . . 26 1600 303 2196 723 2671 Melee . | . . . . . . . . . . . . . . . . . . . . . . . . . . . . . . Ramming 72 | . 15 . . . 12 . . . 10 . . . . . . . 18 . 5 . . . . . . . . . 12 Kinetic 24001 | . 385 12 . . 1949 1428 159 . 2038 766 . 822 . 310 . 1419 4514 315 1543 144 207 . 488 1762 116 18 563 864 4179 Thermal 18572 | . 567 126 . 28 2866 1365 191 26 1727 . . . . . . . 1279 24 293 99 96 . 539 2150 121 . 358 1579 5138 Explosive 11218 | . . . . . 537 834 . . 95 . . . . . . 529 1730 . . . . . . . 1600 303 2196 723 2671 Electromagnetic 319 | . . . . . . . . . . . . . . . . . . . . . . . . 26 . . . . 293 Impact . | . . . . . . . . . . . . . . . . . . . . . . . . . . . . . . Slashing . | . . . . . . . . . . . . . . . . . . . . . . . . . . . . . . Piercing . | . . . . . . . . . . . . . . . . . . . . . . . . . . . . . . Entropic 4097 | . . . . . . . . . . . . . . . . . . . . . . . . . . . . 1467 2630 Highest Corruption 24 | . . . . . . 2 2 2 2 5 5 5 5 5 . . . . 4 4 4 4 4 1 1 1 1 4 24 Average Corruption 4 | . . . . . . 1 2 2 2 2 5 5 5 5 . . . . 4 4 4 4 4 1 1 1 1 3 10 Corruption Purged . | . . . . . . . . . . . . . . . . . . . . . . . . . . . . . . Corruption Blocked . | . . . . . . . . . . . . . . . . . . . . . . . . . . . . . . Effects 248 | . . . . . . 5 7 3 20 10 10 18 3 23 . . . . 5 18 9 5 15 1 5 3 . 6 82 Message Errors 56 | . . . . . . 1 . . 4 1 5 4 . 5 . . . . 2 6 3 1 4 . 1 . . . 19 Matter Fused 61 | . . . . . . 1 2 1 4 3 2 9 . 5 . . . . 2 5 2 3 1 . . 1 . 1 19 Heat Flow Errors 17 | . . . . . . 1 2 . . 3 1 . 1 2 . . . . . 1 . . . 1 1 . . . 4 Energy Discharges 29 | . . . . . . 1 1 1 1 . . 1 2 5 . . . . . . 1 . 2 . 2 . . 1 11 Parts Rejected 2 | . . . . . . . . . . . . . . . . . . . . . . . . . . . . . 2 Parts Fused 1 | . . . . . . . . . . . . . . . . . . . . . . . 1 . . . . . . Data Loss (minor) 28 | . . . . . . . 1 1 3 1 2 3 . 3 . . . . . 1 2 . 2 . . 1 . 1 7 Data Loss (major) 13 | . . . . . . 1 . . 1 . . 1 . 3 . . . . . 1 1 . . . . . . . 5 Misfires 21 | . . . . . . . 1 . 4 1 . . . . . . . . 1 2 . . 3 . 1 1 . . 7 Alerts 3 | . . . . . . . . . . 1 . . . . . . . . . 1 . 1 . . . . . . . Misdirections 1 | . . . . . . . . . . . . . . . . . . . . . . . . . . . . . 1 Weapon Failures 16 | . . . . . . . . . 3 . . . . . . . . . . 1 . . 2 . . . . 3 7 Overload Shots . | . . . . . . . . . . . . . . . . . . . . . . . . . . . . . . Overflow Damage 1741 | . . . . . 2 . . . . 126 . 147 . 12 . 75 27 . . . . . . . 55 . 68 276 953 Projectiles 1521 | . . . . . . . . . . 126 . 147 . 12 . 52 . . . . . . . . . . . 271 913 Explosions 217 | . . . . . 2 . . . . . . . . . . 23 24 . . . . . . . 55 . 68 5 40 Melee 3 | . . . . . . . . . . . . . . . . . 3 . . . . . . . . . . . . Knockbacks 20 | . . . . . . . . . . . . 3 . 2 . 4 . . . . . . . . . . . 1 10 Impact . | . . . . . . . . . . . . . . . . . . . . . . . . . . . . . . Kinetic 18 | . . . . . . . . . . . . 3 . 2 . 4 . . . . . . . . . . . 1 8 Secondary 2 | . . . . . . . . . . . . . . . . . . . . . . . . . . . . . 2 Self-Inflicted Damage 421 | . . . . . 41 18 . . . . . . . . . 49 191 . . . . . . 82 . 18 . 17 5 Shots 11 | . . . . . 3 1 . . . . . . . . . 1 2 . . . . . . 2 . 1 . 1 . Rammed 15 | . 1 . . . 4 . . . 2 1 . . . . . . 2 . 3 . . . . . . . . . 2 Targets Rammed 16 | . 2 . . . 4 . . . 2 1 . . . . . . 2 . 3 . . . . . . . . . 2 Kicked . | . . . . . . . . . . . . . . . . . . . . . . . . . . . . . . Crushed 1 | . 1 . . . . . . . . . . . . . . . . . . . . . . . . . . . . Highest Temperature 442 | . 123 171 . . 269 150 192 63 90 213 106 5 193 233 . . 369 163 265 249 205 . 196 226 185 124 195 442 200 Average Temperature 85 | . 76 98 . . 30 46 35 42 32 84 80 3 112 137 . . 119 106 117 116 121 . 128 125 98 66 90 140 82 Received Heat Transfer 4480 | . 294 90 . . 645 414 . . 372 39 18 51 . 9 . 84 474 . 57 . . . 66 234 105 18 57 421 1032 Effects 3 | . . . . . . . . . . . . . . . . . . . . . . . . . . . . 3 . Energy Bleed 1 | . . . . . . . . . . . . . . . . . . . . . . . . . . . . 1 . Interference 1 | . . . . . . . . . . . . . . . . . . . . . . . . . . . . 1 . Damage (minor) 1 | . . . . . . . . . . . . . . . . . . . . . . . . . . . . 1 . Siege Activations 3 | . . . . . . . . . 1 . . . . . . 1 . . . . . . . 1 . . . . . Total Turns 50 | . . . . . . . . . 16 . . . . . . 23 . . . . . . . 11 . . . . . Longest Duration 23 | . . . . . . . . . 16 . . . . . . 23 . . . . . . . 11 . . . . . Martial Activations . | . . . . . . . . . . . . . . . . . . . . . . . . . . . . . . Shielding Activations . | . . . . . . . . . . . . . . . . . . . . . . . . . . . . . . Robots Disrupted . | . . . . . . . . . . . . . . . . . . . . . . . . . . . . . . Combat Hostiles . | . . . . . . . . . . . . . . . . . . . . . . . . . . . . . . Robots Corrupted 1 | . . . . . . . . . . . . . . . . . 1 . . . . . . . . . . . . Combat Hostiles . | . . . . . . . . . . . . . . . . . . . . . . . . . . . . . . Parts Fried 4 | . . . . . . . . . . . . . . . . . 1 . . . . . . . . . . . 3 Impact Corruptions 1 | . . . . . . . . . . . . . . . . . 1 . . . . . . . . . . . . Robots Melted 7 | . . . . . 1 . . . 2 . . . . . . . . . . . . . . 2 . . 1 . 1 Combat Hostiles 7 | . . . . . 1 . . . 2 . . . . . . . . . . . . . . 2 . . 1 . 1 Parts Melted 117 | . 4 1 . . 15 1 1 1 13 . . . . . . . 10 . . 2 . . 9 24 . . 4 20 12 Heat Transferred 35165 | . 1250 298 . 74 6628 2517 370 37 3052 . . . . . . . 2177 37 518 174 161 . 1396 4808 237 . 816 3342 7273 Parts Sabotaged 7 | . . . . . . . . . . . . . . . . . . . . . . . . . . . . . 7 Parts Stolen . | . . . . . . . . . . . . . . . . . . . . . . . . . . . . . . Parts Stripped . | . . . . . . . . . . . . . . . . . . . . . . . . . . . . . . Power Chain Reactions 2 | . . . . . . . . . . . . . . . . . . . . . . . . 2 . . . . . Alert | -11 -10 -10 -10 -9 -8 -7 -7 -7 -7 -7 -7 -7 -7 -6 -6 -6 -5 -5 -5 -5 -5 -5 -4 -4 -4 -4 -4 -3 -3 ------- Run | Yrd Mat Min Exi Min Mat Fac Was Fac Gar Fac Low Low Dat Pro Fac DSF Fac Was Fac Upp Upp Zhi Pro Fac Upp Upp War Pro Res Maximum Alert Level 5 | . . . . . 3 2 1 . 5 3 . . . . 2 2 4 2 3 . . . . 2 . . . . 3 Low Security (%) 28 | 100 100 100 . 100 28 . 90 100 . . . . . . . . . . 2 . . . . 30 . . . . 49 Level 1 13 | . . . . . 17 33 9 . 4 . . . . . . 10 12 23 10 . . . . 52 . . . . 10 Level 2 28 | . . . . . 32 66 . . 15 . . . . . 100 89 9 76 42 . . . . 17 . . . . 35 Level 3 19 | . . . . . 21 . . . 17 100 . . . . . . 41 . 44 . . . . . . . . . 5 Level 4 7 | . . . . . . . . . 35 . . . . . . . 37 . . . . . . . . . . . . Level 5 3 | . . . . . . . . . 25 . . . . . . . . . . . . . . . . . . . . High Security . | . . . . . . . . . . . . . . . . . . . . . . . . . . . . . . Max Security . | . . . . . . . . . . . . . . . . . . . . . . . . . . . . . . Sterilizations 2 | . . . . . 1 . . . . . . . . . . 1 . . . . . . . . . . . . . Peak Influence 1980 | . 155 91 . 65 955 685 223 64 1980 1039 . . . . 600 675 1589 550 898 . . . . 533 . . . . 772 Initial 1039 | . . 46 . . 9 434 223 . 30 1039 . . . . 600 388 354 550 243 . . . . 39 . . . . 27 Average 538 | . 68 52 . 26 410 454 87 19 1184 909 . . . . 578 545 1029 449 608 . . . . 277 . . . . 325 Influence Increases 14301 | . 441 65 . 65 1586 775 17 74 2100 341 68 323 . 169 605 307 1841 4 1253 67 121 . 282 880 289 40 345 400 1843 Destroy 0b10 Robot/C 7860 | . 300 40 . 40 1040 440 . 20 740 180 40 220 . 120 . 220 1000 . 480 40 80 . 240 420 260 40 340 360 1200 Destroy 0b10 Robot/NC 510 | . 30 . . . 120 75 . . . 5 . . . 10 . 5 110 . 25 . . . 10 25 . . 5 . 90 Destroy Leader 1270 | . 68 10 . 10 240 104 . 10 50 32 10 30 . 10 . 30 176 . 118 10 10 . 30 62 20 . . 40 200 Allied During Kill 1446 | . . . . . . . . 30 585 79 18 73 . 14 . 2 . . 560 17 31 . 2 . 9 . . . 26 Successful Hack 160 | . 10 . . . 36 31 . 14 14 16 . . . . 5 . . . 10 . . . . 24 . . . . . Disable Machine 585 | . 15 15 . . 45 60 . . 15 15 . . . . . 15 165 . 30 . . . . 180 . . . . 30 Anti-Garrison Action 450 | . . . . . . . . . 450 . . . . . . . . . . . . . . . . . . . . Destroy Structure 1060 | . 3 . . . 30 20 17 . 231 14 . . . . . 35 300 4 30 . . . . 154 . . . . 222 Advance Influence 600 | . . . . . . . . . . . . . . . 600 . . . . . . . . . . . . . . Partial Spotted 15 | . . . . . . . . . . . . . . . . . . . . . . . . . . . . . 15 Lose Combat Pursuer 345 | . 15 . . 15 75 45 . . 15 . . . . 15 . . 90 . . . . . . 15 . . . . 60 Influence Decreases 13531 | . 322 173 11 40 656 1091 656 30 164 1377 580 341 414 169 50 187 943 1229 721 682 265 121 218 423 456 258 212 629 1113 Entered New Map 5658 | . . 73 11 . 16 521 416 . 14 941 350 83 414 . . 167 321 1023 105 326 51 121 . 25 194 68 136 269 13 Time Decay 6503 | . 322 90 . 40 580 530 240 30 . 416 230 238 . 149 50 . 502 206 446 356 214 . 218 368 222 160 56 230 610 Lost Part 910 | . . 10 . . 60 40 . . . . . . . . . . 120 . . . . . . 30 40 10 20 130 450 Lost Ally 460 | . . . . . . . . . 150 20 . 20 . 20 . 20 . . 170 . . . . . . 20 . . 40 Squads Dispatched 70 | . 3 . . . 14 7 . . . 2 . . . . . 2 12 . 10 . . . . 5 . . . 1 14 Investigation 6 | . 2 . . . 2 . . . . . . . . . . . . . . . . . . 2 . . . . . Extermination 15 | . . . . . . 2 . . . 1 . . . . . . 2 . 2 . . . . 2 . . . . 6 Reinforcement 23 | . 1 . . . 4 3 . . . 1 . . . . . 2 3 . 3 . . . . 1 . . . . 5 Assault 14 | . . . . . 2 2 . . . . . . . . . . 4 . 2 . . . . . . . . 1 3 Garrison 12 | . . . . . 6 . . . . . . . . . . . 3 . 3 . . . . . . . . . . Intercept . | . . . . . . . . . . . . . . . . . . . . . . . . . . . . . . Searches Triggered . | . . . . . . . . . . . . . . . . . . . . . . . . . . . . . . Data Miner Redirects 5 | . . . . . . . . . . . . . . . . . 1 . . . . . . 2 . . . . 2 Construction Impeded 5 | . . . . . . . . . . . . . . . . . 2 . 1 . . . . 1 . . . . 1 Haulers Reinforced 4 | . . . . . . 1 . . . . . . . . . . 1 . 1 . . . . . . . . . 1 Active Scanning Responses . | . . . . . . . . . . . . . . . . . . . . . . . . . . . . . . Cargo Convoy Interrupts . | . . . . . . . . . . . . . . . . . . . . . . . . . . . . . . Stealth | -11 -10 -10 -10 -9 -8 -7 -7 -7 -7 -7 -7 -7 -7 -6 -6 -6 -5 -5 -5 -5 -5 -5 -4 -4 -4 -4 -4 -3 -3 --------- Run | Yrd Mat Min Exi Min Mat Fac Was Fac Gar Fac Low Low Dat Pro Fac DSF Fac Was Fac Upp Upp Zhi Pro Fac Upp Upp War Pro Res Distress Signals 20 | . 2 . . . 6 . . . . . . . . 1 . . 5 . 1 . . . . 1 . . 1 . 3 Communications Jammed . | . . . . . . . . . . . . . . . . . . . . . . . . . . . . . . Distress Signals . | . . . . . . . . . . . . . . . . . . . . . . . . . . . . . . Times Spotted 502 | . 27 2 . 4 71 33 1 1 33 9 1 11 . 8 . 11 69 . 18 2 2 . 15 25 13 2 35 19 90 Peak Tracking Total 12 | . 6 2 . 3 7 5 1 1 6 2 1 4 . 2 . 4 8 . 5 1 3 . 7 4 5 2 12 7 11 Tactical Retreats 16 | . 1 . . 1 5 1 . . 1 . . . . 1 . . 3 . . . . . . 1 . . . . 2 Traps | -11 -10 -10 -10 -9 -8 -7 -7 -7 -7 -7 -7 -7 -7 -6 -6 -6 -5 -5 -5 -5 -5 -5 -4 -4 -4 -4 -4 -3 -3 ------- Run | Yrd Mat Min Exi Min Mat Fac Was Fac Gar Fac Low Low Dat Pro Fac DSF Fac Was Fac Upp Upp Zhi Pro Fac Upp Upp War Pro Res Traps Triggered 25 | . 2 . . . 1 1 . . 4 1 . . . . . 1 1 . 1 . . . . 5 . . . . 8 Indirectly . | . . . . . . . . . . . . . . . . . . . . . . . . . . . . . . Trap Hack Attempts . | . . . . . . . . . . . . . . . . . . . . . . . . . . . . . . Triggered . | . . . . . . . . . . . . . . . . . . . . . . . . . . . . . . Disarmed . | . . . . . . . . . . . . . . . . . . . . . . . . . . . . . . Reprogrammed . | . . . . . . . . . . . . . . . . . . . . . . . . . . . . . . Reused . | . . . . . . . . . . . . . . . . . . . . . . . . . . . . . . Traps Extracted . | . . . . . . . . . . . . . . . . . . . . . . . . . . . . . . Installed . | . . . . . . . . . . . . . . . . . . . . . . . . . . . . . . Triggered . | . . . . . . . . . . . . . . . . . . . . . . . . . . . . . . Machines | -11 -10 -10 -10 -9 -8 -7 -7 -7 -7 -7 -7 -7 -7 -6 -6 -6 -5 -5 -5 -5 -5 -5 -4 -4 -4 -4 -4 -3 -3 ---------- Run | Yrd Mat Min Exi Min Mat Fac Was Fac Gar Fac Low Low Dat Pro Fac DSF Fac Was Fac Upp Upp Zhi Pro Fac Upp Upp War Pro Res Machines Disabled 47 | . 1 1 . . 3 4 . . 7 1 . . . . . 1 11 . 2 . . . . 12 1 . . 1 2 Max in Single Turn 5 | . 1 1 . . 1 2 . . 1 1 . . . . . 1 5 . 1 . . . . 5 1 . . 1 1 Garrison Relay 5 | . . . . . . . . . 5 . . . . . . . . . . . . . . . . . . . . Machines Repaired . | . . . . . . . . . . . . . . . . . . . . . . . . . . . . . . Machines Dismantled . | . . . . . . . . . . . . . . . . . . . . . . . . . . . . . . Machines Sabotaged . | . . . . . . . . . . . . . . . . . . . . . . . . . . . . . . Overloaded Fab Kills . | . . . . . . . . . . . . . . . . . . . . . . . . . . . . . . Hacking | -11 -10 -10 -10 -9 -8 -7 -7 -7 -7 -7 -7 -7 -7 -6 -6 -6 -5 -5 -5 -5 -5 -5 -4 -4 -4 -4 -4 -3 -3 --------- Run | Yrd Mat Min Exi Min Mat Fac Was Fac Gar Fac Low Low Dat Pro Fac DSF Fac Was Fac Upp Upp Zhi Pro Fac Upp Upp War Pro Res Machines Accessed 52 | . 5 . 1 . 7 7 . 1 3 4 . . 3 . 1 . 4 . 2 . . 3 . 5 1 . 1 . 4 Terminals 23 | . 4 . . . 3 3 . . 3 2 . . . . 1 . 3 . 2 . . . . 2 . . . . . Fabricators 2 | . . . . . . 1 . . . . . . . . . . . . . . . . . . . . . . 1 Repair Stations 7 | . 1 . . . 1 1 . . . 1 . . . . . . . . . . . . . 2 . . . . 1 Recycling Units 1 | . . . . . 1 . . . . . . . . . . . . . . . . . . . . . . . . Scanalyzers 8 | . . . . . 2 2 . . . . . . . . . . 1 . . . . . . 1 . . . . 2 Garrison Access 2 | . . . . . . . . 1 . 1 . . . . . . . . . . . . . . . . . . . Total Hacks 136 | . 18 . 1 . 20 16 . 1 6 8 . . 19 . 1 . 10 . 6 . . 13 . 9 1 . 1 . 6 Successful 85 | . 10 . 1 . 12 8 . 1 1 4 . . 19 . 1 . 3 . 3 . . 13 . 4 1 . 1 . 3 Failed 48 | . 7 . . . 8 8 . . 5 4 . . . . . . 6 . 3 . . . . 5 . . . . 2 Catastrophic 7 | . . . . . 1 2 . . 1 1 . . . . . . . . 1 . . . . . . . . . 1 Database Lockouts 3 | . 1 . . . . . . . . . . . . . . . 1 . . . . . . . . . . . 1 Manual 38 | . 11 . . . 5 7 . . . 2 . . . . . . 4 . 3 . . . . 5 . . 1 . . Terminals 64 | . 16 . . . 11 7 . . 6 4 . . . . 1 . 8 . 6 . . . . 5 . . . . . Fabricators 2 | . . . . . . 1 . . . . . . . . . . . . . . . . . . . . . . 1 Repair Stations 13 | . 2 . . . 2 3 . . . 2 . . . . . . . . . . . . . 2 . . . . 2 Recycling Units 2 | . . . . . 2 . . . . . . . . . . . . . . . . . . . . . . . . Scanalyzers 17 | . . . . . 5 5 . . . . . . . . . . 2 . . . . . . 2 . . . . 3 Garrison Access 3 | . . . . . . . . 1 . 2 . . . . . . . . . . . . . . . . . . . Terminal Hacks 51 | . 5 . 1 . 4 . . . 1 2 . . 19 . 1 . 2 . 1 . . 13 . . 1 . 1 . . Record 4 | . . . 1 . . . . . . . . . 2 . . . . . . . . 1 . . . . . . . Part Schematic 13 | . . . . . . . . . . . . . 9 . . . . . . . . 4 . . . . . . . Robot Schematic 5 | . . . . . . . . . . . . . 5 . . . . . . . . . . . . . . . . Robot Analysis 5 | . 1 . . . . . . . . . . . . . . . . . . . . 4 . . . . . . . Prototype ID Bank 10 | . 1 . . . 2 . . . . . . . 3 . . . . . . . . 4 . . . . . . . Open Door 2 | . . . . . . . . . . . . . . . . . . . . . . . . . 1 . 1 . . Open DSF 1 | . . . . . . . . . . . . . . . 1 . . . . . . . . . . . . . . Branch Access Points 1 | . . . . . 1 . . . . . . . . . . . . . . . . . . . . . . . . Emergency Access Points 1 | . . . . . . . . . 1 . . . . . . . . . . . . . . . . . . . . Alert Level 2 | . . . . . . . . . . . . . . . . . 2 . . . . . . . . . . . . Locate Traps 3 | . 2 . . . . . . . . 1 . . . . . . . . . . . . . . . . . . . Transport Status 1 | . 1 . . . . . . . . . . . . . . . . . . . . . . . . . . . . Hauler Manifests 1 | . . . . . 1 . . . . . . . . . . . . . . . . . . . . . . . . Zone Layout 2 | . . . . . . . . . . 1 . . . . . . . . 1 . . . . . . . . . . Fabricator Hacks . | . . . . . . . . . . . . . . . . . . . . . . . . . . . . . . Repair Station Hacks 7 | . 2 . . . 1 1 . . . 1 . . . . . . . . . . . . . . . . . . 2 Scan Component 5 | . 1 . . . 1 1 . . . 1 . . . . . . . . . . . . . . . . . . 1 Repair 2 | . 1 . . . . . . . . . . . . . . . . . . . . . . . . . . . 1 Recycling Unit Hacks 1 | . . . . . 1 . . . . . . . . . . . . . . . . . . . . . . . . Retrieve Components 1 | . . . . . 1 . . . . . . . . . . . . . . . . . . . . . . . . Scanalyzer 11 | . . . . . 4 4 . . . . . . . . . . 1 . . . . . . 1 . . . . 1 Retrieve Study 11 | . . . . . 4 4 . . . . . . . . . . 1 . . . . . . 1 . . . . 1 Garrison Access Hacks 1 | . . . . . . . . 1 . . . . . . . . . . . . . . . . . . . . . Unlock Access 1 | . . . . . . . . 1 . . . . . . . . . . . . . . . . . . . . . Unauthorized Hacks 14 | . 3 . . . 2 3 . . . 1 . . . . . . . . 2 . . . . 3 . . . . . Terminals 11 | . 3 . . . 2 2 . . . 1 . . . . . . . . 2 . . . . 1 . . . . . Botnet 10 | . 3 . . . 1 2 . . . 1 . . . . . . . . 2 . . . . 1 . . . . . Disrupt 1 | . . . . . 1 . . . . . . . . . . . . . . . . . . . . . . . . Fabricators 1 | . . . . . . 1 . . . . . . . . . . . . . . . . . . . . . . . Haulers 1 | . . . . . . 1 . . . . . . . . . . . . . . . . . . . . . . . Repair Stations 2 | . . . . . . . . . . . . . . . . . . . . . . . . 2 . . . . . Patch 2 | . . . . . . . . . . . . . . . . . . . . . . . . 2 . . . . . Recycling Units . | . . . . . . . . . . . . . . . . . . . . . . . . . . . . . . Scanalyzers . | . . . . . . . . . . . . . . . . . . . . . . . . . . . . . . Garrison Access . | . . . . . . . . . . . . . . . . . . . . . . . . . . . . . . Data Cores Recovered 1 | . . . . . . . . . . . . . . . . . 1 . . . . . . . . . . . . Used . | . . . . . . . . . . . . . . . . . . . . . . . . . . . . . . Hacking Detections 35 | . 5 . . . 7 5 . . 3 3 . . . . . . 4 . 2 . . . . 3 . . . . 3 Full Trace Events 1 | . . . . . 1 . . . . . . . . . . . . . . . . . . . . . . . . Feedback Events . | . . . . . . . . . . . . . . . . . . . . . . . . . . . . . . Feedback Blocked . | . . . . . . . . . . . . . . . . . . . . . . . . . . . . . . Robot Schematics Acquired 5 | . . . . . . . . . . . . . 5 . . . . . . . . . . . . . . . . Robots Built . | . . . . . . . . . . . . . . . . . . . . . . . . . . . . . . Authchips . | . . . . . . . . . . . . . . . . . . . . . . . . . . . . . . Time . | . . . . . . . . . . . . . . . . . . . . . . . . . . . . . . Total Robot Build Rating . | . . . . . . . . . . . . . . . . . . . . . . . . . . . . . . Part Schematics Acquired 13 | . . . . . . . . . . . . . 9 . . . . . . . . 4 . . . . . . . Parts Built . | . . . . . . . . . . . . . . . . . . . . . . . . . . . . . . Authchips . | . . . . . . . . . . . . . . . . . . . . . . . . . . . . . . Time . | . . . . . . . . . . . . . . . . . . . . . . . . . . . . . . Total Part Build Rating . | . . . . . . . . . . . . . . . . . . . . . . . . . . . . . . Part Studies Acquired 11 | . . . . . 4 4 . . . . . . . . . . 1 . . . . . . 1 . . . . 1 Parts Repaired 2 | . 1 . . . . . . . . . . . . . . . . . . . . . . . . . . . 1 Time 88 | . 26 . . . . . . . . . . . . . . . . . . . . . . . . . . . 62 Parts Recycled . | . . . . . . . . . . . . . . . . . . . . . . . . . . . . . . Recycled Matter . | . . . . . . . . . . . . . . . . . . . . . . . . . . . . . . Retrieved Matter . | . . . . . . . . . . . . . . . . . . . . . . . . . . . . . . Retrieved Components 10 | . . . . . 10 . . . . . . . . . . . . . . . . . . . . . . . . Parts Scanalyzed . | . . . . . . . . . . . . . . . . . . . . . . . . . . . . . . Part Schematics Acquired . | . . . . . . . . . . . . . . . . . . . . . . . . . . . . . . Parts Damaged . | . . . . . . . . . . . . . . . . . . . . . . . . . . . . . . Bothacking | -11 -10 -10 -10 -9 -8 -7 -7 -7 -7 -7 -7 -7 -7 -6 -6 -6 -5 -5 -5 -5 -5 -5 -4 -4 -4 -4 -4 -3 -3 ------------ Run | Yrd Mat Min Exi Min Mat Fac Was Fac Gar Fac Low Low Dat Pro Fac DSF Fac Was Fac Upp Upp Zhi Pro Fac Upp Upp War Pro Res Used RIF Installer . | . . . . . . . . . . . . . . . . . . . . . . . . . . . . . . Robots Hacked 1 | . . . . . . 1 . . . . . . . . . . . . . . . . . . . . . . . Non-combat 1 | . . . . . . 1 . . . . . . . . . . . . . . . . . . . . . . . Combat . | . . . . . . . . . . . . . . . . . . . . . . . . . . . . . . Robot Hacks Applied 1 | . . . . . . 1 . . . . . . . . . . . . . . . . . . . . . . . find_chute 1 | . . . . . . 1 . . . . . . . . . . . . . . . . . . . . . . . Relay Couplers Released 24 | . . . . . . 4 . . 20 . . . . . . . . . . . . . . . . . . . . Machine Destruction 20 | . . . . . . . . . 20 . . . . . . . . . . . . . . . . . . . . Programmers 4 | . . . . . . 4 . . . . . . . . . . . . . . . . . . . . . . . Fabnet Peak Effective % . | . . . . . . . . . . . . . . . . . . . . . . . . . . . . . . Robots Rewired 6 | . . . . . . . . . 3 . . . . . . . . . . . . . . . 1 . . 2 . Allies Hacked 3 | . . . . . . . . 1 . . . . . . . . . . 2 . . . . . . . . . . Hacks Repelled . | . . . . . . . . . . . . . . . . . . . . . . . . . . . . . . Allies | -11 -10 -10 -10 -9 -8 -7 -7 -7 -7 -7 -7 -7 -7 -6 -6 -6 -5 -5 -5 -5 -5 -5 -4 -4 -4 -4 -4 -3 -3 -------- Run | Yrd Mat Min Exi Min Mat Fac Was Fac Gar Fac Low Low Dat Pro Fac DSF Fac Was Fac Upp Upp Zhi Pro Fac Upp Upp War Pro Res Total Allies 46 | . . . . . . . 20 . 3 . . . . . . . . 20 . . . . . . 1 . . 2 . Largest Group 20 | . . . . . . . 20 15 15 6 5 5 3 3 2 2 . 20 18 3 3 3 3 . 1 1 . 2 2 Highest-Rated Group 758 | . . . . . . . 524 391 391 189 164 164 82 82 53 53 . 758 660 138 138 138 138 . 47 47 . 111 111 Highest-Rated Ally 64 | . . . . . . . 35 31 43 43 43 43 29 29 29 29 . 50 46 46 46 46 46 . 47 47 . 64 64 Initial Warlord ECA Mod 17 | . . . . . . . . . . 9 9 9 9 8 8 8 17 17 17 17 17 17 16 16 16 16 16 15 15 Total Orders 1 | . . . . . . . . . . . . . . . . . . . . . . . . . . . . . 1 STAY 1 | . . . . . . . . . . . . . . . . . . . . . . . . . . . . . 1 Ally Attacks 528 | . . . . . . . 11 13 171 20 6 38 . 68 . 7 . . 147 10 13 . 6 . 4 3 . . 11 Total Damage 9048 | . . . . . . . 755 166 2813 409 157 576 . 347 . 65 . . 2804 229 161 . 83 . 99 22 . . 362 Kills 57 | . . . . . . . 3 . 17 3 2 6 . 5 . . . . 15 1 1 . 1 . 2 . . . 1 Allies Corrupted 4 | . . . . . . . . . . 1 . . . . . . . . 3 . . . . . . . . . . Allies Melted 1 | . . . . . . . . . . . . . . . . . . . 1 . . . . . . . . . . Intel | -11 -10 -10 -10 -9 -8 -7 -7 -7 -7 -7 -7 -7 -7 -6 -6 -6 -5 -5 -5 -5 -5 -5 -4 -4 -4 -4 -4 -3 -3 ------- Run | Yrd Mat Min Exi Min Mat Fac Was Fac Gar Fac Low Low Dat Pro Fac DSF Fac Was Fac Upp Upp Zhi Pro Fac Upp Upp War Pro Res Active Infowar (turns) 60 | . . . . . . . . . . . . . . . . . . . . . . . . . . . . . 60 Optics 60 | . . . . . . . . . . . . . . . . . . . . . . . . . . . . . 60 Robot Analysis Total 5 | . 1 . . . . . . . . . . . . . . . . . . . . 4 . . . . . . . Derelict Logs Recovered 8 | . . . . . . . . . . . 1 1 . . . . . . . 1 1 . 2 . 2 . . . . Drone Launches . | . . . . . . . . . . . . . . . . . . . . . . . . . . . . . . Drone Recoveries . | . . . . . . . . . . . . . . . . . . . . . . . . . . . . . . Exploration | -11 -10 -10 -10 -9 -8 -7 -7 -7 -7 -7 -7 -7 -7 -6 -6 -6 -5 -5 -5 -5 -5 -5 -4 -4 -4 -4 -4 -3 -3 ------------- Run | Yrd Mat Min Exi Min Mat Fac Was Fac Gar Fac Low Low Dat Pro Fac DSF Fac Was Fac Upp Upp Zhi Pro Fac Upp Upp War Pro Res Turns Passed 22724 | 71 1044 194 617 128 2234 1492 646 143 1840 1005 493 518 139 889 106 330 1354 420 1113 815 442 252 626 849 466 330 732 704 2732 Spaces Moved 10610 | 41 486 103 386 77 772 616 308 65 855 390 203 194 80 359 45 114 643 235 442 358 192 150 258 424 298 226 474 434 1382 Core 13 | 3 . . . . . . . . . . . . . . . . . . . . . . . . . . . . 10 Treads 7235 | 38 486 103 386 77 772 616 308 65 855 390 203 194 80 359 45 114 445 199 442 358 192 150 258 100 . . . . . Legs 207 | . . . . . . . . . . . . . . . . . . . . . . . . . . . . . 207 Wheels 3155 | . . . . . . . . . . . . . . . . . 198 36 . . . . . 324 298 226 474 434 1165 Hover . | . . . . . . . . . . . . . . . . . . . . . . . . . . . . . . Flight . | . . . . . . . . . . . . . . . . . . . . . . . . . . . . . . Fastest Speed 50 | 50 160 160 160 160 160 200 160 160 160 240 240 240 160 240 240 160 105 115 225 225 225 145 225 120 135 135 120 105 90 Average Speed 175 | 151 160 160 160 160 205 200 169 160 175 240 240 240 168 240 240 202 148 148 225 225 225 146 225 151 135 135 134 125 133 Slowest Speed 700 | 160 160 160 160 160 240 200 200 160 240 240 240 240 240 240 240 240 240 225 225 225 225 225 225 225 135 135 135 135 700 Overloaded Moves . | . . . . . . . . . . . . . . . . . . . . . . . . . . . . . . Propulsion Burnouts . | . . . . . . . . . . . . . . . . . . . . . . . . . . . . . . Robots Hopped . | . . . . . . . . . . . . . . . . . . . . . . . . . . . . . . Potential Cave-ins . | . . . . . . . . . . . . . . . . . . . . . . . . . . . . . . Cave-ins Triggered . | . . . . . . . . . . . . . . . . . . . . . . . . . . . . . . Teleports 1 | . . . . . . . . . . . . . . . . . . . . . . . . . 1 . . . . Exploration Rate (%) 46 | 3 70 17 86 18 49 18 94 2 95 12 51 42 68 64 3 94 23 95 16 52 39 60 51 15 61 40 67 64 31 Regions Visited 29 Branch Regions 15 Pre-discovered Areas 4 | . . . . . . . . . . . 1 . 1 . . . . . . . 1 . . . 1 . . . . Known Exits Taken 3 | . . . . . . . . 1 . . . . . . 1 . . . 1 . . . . . . . . . . Unknown Exits Taken 20 | 1 1 1 1 1 1 . . . . 1 1 1 1 1 . . . . . 1 1 1 1 1 1 1 1 1 . Scrap Searched 11 | . . . . . . . . . . . 1 2 . . . . . . . . 1 . 2 . . 1 . 4 . Spaces Dug 7 | . . . . . . 1 . . . . . . . . . . . . . . . . . . . 1 1 . 4 Terrain Destroyed 907 | . . . . . 15 18 8 . 54 14 3 18 . 14 . 36 179 7 14 5 1 . 29 91 94 39 42 43 183 Melee 1 | . . . . . . 1 . . . . . . . . . . . . . . . . . . . . . . . Projectile 263 | . . . . . . 2 8 . 22 14 3 18 . 14 . 15 10 7 12 5 1 . 29 41 7 6 13 12 24 AOE 637 | . . . . . 15 15 . . 31 . . . . . . 21 167 . . . . . . 49 87 33 29 31 159 Terrain Rammed . | . . . . . . . . . . . . . . . . . . . . . . . . . . . . . . Walls Destroyed . | . . . . . . . . . . . . . . . . . . . . . . . . . . . . . . Machines Disabled . | . . . . . . . . . . . . . . . . . . . . . . . . . . . . . . Actions | -11 -10 -10 -10 -9 -8 -7 -7 -7 -7 -7 -7 -7 -7 -6 -6 -6 -5 -5 -5 -5 -5 -5 -4 -4 -4 -4 -4 -3 -3 --------- Run | Yrd Mat Min Exi Min Mat Fac Was Fac Gar Fac Low Low Dat Pro Fac DSF Fac Was Fac Upp Upp Zhi Pro Fac Upp Upp War Pro Res Total 12897 | 47 629 117 385 78 1136 739 426 101 1021 434 205 217 87 369 44 163 855 303 513 360 194 182 272 539 338 241 527 512 1863 Wait 655 | . 62 1 . . 160 8 85 35 16 20 . 16 . 6 . 12 30 47 1 . . . 1 30 . . 2 3 120 Move 10583 | 40 485 102 385 76 771 616 307 64 854 389 202 193 79 358 44 113 643 234 441 357 191 149 257 423 297 225 473 433 1382 Hop . | . . . . . . . . . . . . . . . . . . . . . . . . . . . . . . Pick Up 115 | 2 10 . . . 16 10 4 . 11 2 . . . . . 4 11 3 4 . . 3 . 3 . . 3 6 23 Fast Attach 154 | 5 3 . . . 2 5 1 . 2 4 . . 3 . . 3 19 1 3 . . 11 . 4 3 1 5 6 73 Attach 78 | . . 1 . . 9 7 1 . 1 . . . . . . 4 10 1 . . . . 1 3 3 2 6 6 23 Detach 49 | . . . . . . 5 . . 1 . . . . . . 2 8 . . . . . . . 3 3 4 2 21 Swap 204 | . 4 4 . . 29 19 7 . 11 3 2 . . . . 3 32 5 27 . . 6 2 12 7 2 8 1 20 Drop 190 | . 3 2 . . 23 14 15 . 20 7 . . 5 . . 6 20 6 16 . . 13 . 2 1 1 7 5 24 Fire 765 | . 60 7 . 2 122 54 5 1 82 7 1 8 . 5 . 16 80 2 16 3 3 . 11 30 12 7 19 37 175 Melee 1 | . . . . . . 1 . . . . . . . . . . . . . . . . . . . . . . . Ram 2 | . . . . . . . . . . . . . . . . . . . . . . . . . . . . . 2 Kick . | . . . . . . . . . . . . . . . . . . . . . . . . . . . . . . Crush 14 | . 2 . . . 4 . . . 2 1 . . . . . . 2 . 3 . . . . . . . . . . Escape Stasis 35 | . . . . . . . . . . 1 . . . . . . . . 2 . . . . 32 . . . . . Rewire 52 | . . . . . . . 1 1 21 . . . . . . . . 4 . . . . . . 12 . . 13 . Trap . | . . . . . . . . . . . . . . . . . . . . . . . . . . . . . . Miscellaneous . | . . . . . . . . . . . . . . . . . . . . . . . . . . . . . . Route ------- -11/Scrapyard -10/Materials (discovered 3 exits: [*Mat] / [*Min x2]) -10/Mines (discovered 2 exits: [*Mat] / *Exi) -10/Exiles -9/Mines -8/Materials -7/Factory -7/Waste -7/Factory -7/Garrison (discovered 3 exits: *Fac x3) -7/Factory -7/Lower Caves -7/Lower Caves -7/Data Miner -6/Proximity Caves -6/Factory -6/DSF -5/Factory (discovered 2 exits: Upp / Ext) -5/Waste -5/Factory -5/Upper Caves -5/Upper Caves -5/Zhirov -4/Proximity Caves -4/Factory -4/Upper Caves -4/Upper Caves -4/Warlord -3/Proximity Caves -3/Research (discovered 1 exit: Arm) History --------- Turn | Location | Event 17 | -11/Scrapyard | Discovered new exit (range 15) 72 | -11/Scrapyard | Entered Materials 256 | -10/Materials | Central database locked down 312 | -10/Materials | Build established: Mutant 565 | -10/Materials | Discovered new exit (range 8) 636 | -10/Materials | Core integrity fell below 50% 793 | -10/Materials | Discovered new exit (range 12) 886 | -10/Materials | Repaired Lgt. Treads 1036 | -10/Materials | Discovered new exit (range 8) 1116 | -10/Materials | Entered Mines 1183 | -10/Mines | Discovered new exit (range 13) 1247 | -10/Mines | Deemed a non-threat by the Exiles lab entrance 1249 | -10/Mines | Discovered new exit (range 5) 1308 | -10/Mines | Build established: Scavenger-Mutant 1310 | -10/Mines | Entered Exiles 1310 | -10/Exiles | Found Exiles lab abandoned 1914 | -10/Exiles | Discovered new exit (range 10) 1927 | -10/Exiles | Entered Mines 1930 | -9/Mines | Met a Derelict bent on vengeance 1945 | -9/Mines | Discovered new exit (range 16) 2055 | -9/Mines | Entered Materials 2055 | -8/Materials | Evolved 4 slots: Utility x2, Weapon x2 2444 | -8/Materials | Build established: Scavenger-Tank 2643 | -8/Materials | Garrison activated, responded to threat 2999 | -8/Materials | Garrison activated, responded to threat 3109 | -8/Materials | Build established: Tank 3655 | -8/Materials | First assault squad dispatched 3737 | -8/Materials | Discovered new exit (range 16) 4123 | -8/Materials | Lost 3 parts (3w) 4192 | -8/Materials | Sterilization system engaged 4192 | -8/Materials | Non-combat units ordered to evacuate 4203 | -8/Materials | Build established: Scavenger-Tank 4289 | -8/Materials | Entered Factory 4289 | -7/Factory | Evolved 2 slots: Weapon x2 4617 | -7/Factory | Build established: Scavenger-Executioner 4689 | -7/Factory | First assault squad dispatched 5556 | -7/Factory | Destroyed 11 combat bots 5562 | -7/Factory | Lost 3 parts (1p2w) 5705 | -7/Factory | Discovered new exit (range 7) 5781 | -7/Factory | Manually triggered Chute Trap 5781 | -7/Factory | Sucked down chute 5781 | -7/Factory | Entered Waste 5782 | -7/Waste | Joined by Warlord forces that had cleared the area 6001 | -7/Waste | A Compactor rumbled back to life 6001 | -7/Waste | Spotted C-40 Crusher 6004 | -7/Waste | Allies destroyed C-40 Crusher 6046 | -7/Waste | Murdered 3 allies 6304 | -7/Waste | Found Hvy. Reactive Plating 6382 | -7/Waste | Build established: Executioner 6392 | -7/Waste | Discovered new exit (range 13) 6427 | -7/Waste | Entered Factory 6427 | -7/Factory | Accompanied by 15 allies 6507 | -7/Factory | Identified exit to Garrison 6570 | -7/Factory | Entered Garrison 6570 | -7/Garrison | Accompanied by 15 allies 6749 | -7/Garrison | Spotted B-75 Beast 6771 | -7/Garrison | Destroyed B-75 Beast 6932 | -7/Garrison | Triggered checkpoint 6932 | -7/Garrison | Triggered checkpoint 6939 | -7/Garrison | Triggered checkpoint 6967 | -7/Garrison | Triggered checkpoint 6988 | -7/Garrison | Destroyed 7 combat bots 7215 | -7/Garrison | Spotted B-75 Beast 7220 | -7/Garrison | Discovered new exit (range 13) 7234 | -7/Garrison | Allies destroyed B-75 Beast 7252 | -7/Garrison | Triggered checkpoint 7270 | -7/Garrison | Garrison Relay disabled 7486 | -7/Garrison | Garrison Relay disabled 7600 | -7/Garrison | Discovered new exit (range 11) 7636 | -7/Garrison | Triggered checkpoint 7801 | -7/Garrison | Garrison Relay disabled 7802 | -7/Garrison | Triggered checkpoint 7926 | -7/Garrison | Triggered checkpoint 8230 | -7/Garrison | Discovered new exit (range 10) 8242 | -7/Garrison | Triggered checkpoint 8333 | -7/Garrison | Garrison Relay disabled 8410 | -7/Garrison | Entered Factory 8410 | -7/Factory | Accompanied by 6 allies 9366 | -7/Factory | Discovered new exit (range 14) 9415 | -7/Factory | Entered Lower Caves 9415 | -7/Lower Caves | Accompanied by 5 allies 9440 | -7/Lower Caves | Met a Warlord Commander 9441 | -7/Lower Caves | Learned location of Warlord (-4) 9442 | -7/Lower Caves | Warlord Commander delivered Encrypted Comm Array 9447 | -7/Lower Caves | Found Unknown Device 9447 | -7/Lower Caves | Identified Encrypted Comm Array 9591 | -7/Lower Caves | Attracted the attention of an 0b10 checkpoint 9865 | -7/Lower Caves | Discovered new exit (range 14) 9908 | -7/Lower Caves | Entered another Lower Caves area 9908 | -7/Lower Caves | Accompanied by 5 allies 10091 | -7/Lower Caves | Attracted the attention of an 0b10 checkpoint 10385 | -7/Lower Caves | Discovered new exit (range 13) 10405 | -7/Lower Caves | Encountered a Warlord checkpoint 10426 | -7/Lower Caves | Entered Data Miner 10426 | -7/Data Miner | Accompanied by 3 allies 10426 | -7/Data Miner | Discovered new exit (range 6) 10463 | -7/Data Miner | Met Data Miner 10498 | -7/Data Miner | Learned location of Section 7 (-2) 10498 | -7/Data Miner | Acquired the access code to Warlord's prototype stash 10519 | -7/Data Miner | Received God Mode back door access code from Data Miner 10565 | -7/Data Miner | Entered Proximity Caves 10565 | -6/Proximity Caves | Accompanied by 3 allies 10649 | -6/Proximity Caves | Spotter reported a threat 10758 | -6/Proximity Caves | Spotter reported a threat 10950 | -6/Proximity Caves | Spotter reported a threat 11107 | -6/Proximity Caves | Spotter reported a threat 11435 | -6/Proximity Caves | Discovered new exit (range 6) 11454 | -6/Proximity Caves | Entered Factory 11454 | -6/Factory | Accompanied by 2 allies 11454 | -6/Factory | Evolved 2 slots: Weapon x2 11555 | -6/Factory | Identified exit to DSF 11560 | -6/Factory | Entered DSF 11560 | -6/DSF | Accompanied by 2 allies 11583 | -6/DSF | Additional patrols routed to DSF 11785 | -6/DSF | Sterilization system engaged 11805 | -6/DSF | Ambient heat levels rising (+10) 11820 | -6/DSF | Ambient heat levels rising (+10) 11835 | -6/DSF | Ambient heat levels rising (+10) 11839 | -6/DSF | Discovered new exit (range 14) 11850 | -6/DSF | Ambient heat levels rising (+10) 11865 | -6/DSF | Ambient heat levels rising (+10) 11880 | -6/DSF | Ambient heat levels rising (+10) 11890 | -6/DSF | Entered Factory 11890 | -5/Factory | Evolved 2 slots: Weapon x2 11891 | -5/Factory | Identified exit to Upper Caves 11891 | -5/Factory | Identified exit to Extension 11999 | -5/Factory | Central database locked down 12080 | -5/Factory | Build established: Scavenger-Executioner 12190 | -5/Factory | First assault squad dispatched 12272 | -5/Factory | Destroyed 7 combat bots 12374 | -5/Factory | Lost 4 parts (1n3w) 12480 | -5/Factory | Found Prototype Launcher 12480 | -5/Factory | Identified Mni. Smartbomb Launcher 12483 | -5/Factory | Found Mni. Smartbomb Launcher 12486 | -5/Factory | Found Mni. Smartbomb Launcher 12859 | -5/Factory | Incoming assault squad redirected 12874 | -5/Factory | Destroyed 8 combat bots 12950 | -5/Factory | Garrison activated, responded to threat 13009 | -5/Factory | Destroyed 8 combat bots 13244 | -5/Factory | Sucked down chute 13244 | -5/Factory | Entered Waste 13245 | -5/Waste | Joined by Warlord forces that had cleared the area 13536 | -5/Waste | Discovered new exit (range 16) 13664 | -5/Waste | Entered Factory 13664 | -5/Factory | Accompanied by 18 allies 13797 | -5/Factory | Garrison activated, responded to threat 14494 | -5/Factory | Discovered exit to Upper Caves (range 9) 14564 | -5/Factory | First assault squad dispatched 14707 | -5/Factory | P-70 Sage assimilated allied 50-13X(l) 14777 | -5/Factory | Entered Upper Caves 14777 | -5/Upper Caves | Accompanied by 3 allies 15023 | -5/Upper Caves | Build established: Pyromaniac-Executioner 15187 | -5/Upper Caves | Attracted the attention of an 0b10 checkpoint 15225 | -5/Upper Caves | Learned Factory security intel 15504 | -5/Upper Caves | Discovered new exit (range 10) 15592 | -5/Upper Caves | Entered another Upper Caves area 15592 | -5/Upper Caves | Accompanied by 3 allies 15916 | -5/Upper Caves | Learned location of Armory (-3) 16016 | -5/Upper Caves | Discovered new exit (range 11) 16034 | -5/Upper Caves | Entered Zhirov 16034 | -5/Zhirov | Accompanied by 3 allies 16040 | -5/Zhirov | Discovered new exit (range 3) 16066 | -5/Zhirov | Met Zhirov 16105 | -5/Zhirov | Zhirov requested help retrieving the SGEMP Prototype 16128 | -5/Zhirov | Found Alien Artifact 16128 | -5/Zhirov | Identified Integrated Dissipator 16128 | -5/Zhirov | Installed Integrated Dissipator, increased core heat dissipation (+20) 16195 | -5/Zhirov | Found Alien Artifact 16286 | -5/Zhirov | Entered Proximity Caves 16286 | -4/Proximity Caves | Accompanied by 3 allies 16383 | -4/Proximity Caves | Learned 4 Research zone layouts 16486 | -4/Proximity Caves | Lost 3 allies 16491 | -4/Proximity Caves | Learned Research stockpile data 16494 | -4/Proximity Caves | Destroyed 8 combat bots 16808 | -4/Proximity Caves | Attracted the attention of an 0b10 checkpoint 16885 | -4/Proximity Caves | Discovered new exit (range 12) 16912 | -4/Proximity Caves | Entered Factory 16912 | -4/Factory | Evolved 2 slots: Weapon x2 17335 | -4/Factory | Incoming investigation squad redirected 17467 | -4/Factory | Discovered new exit (range 14) 17517 | -4/Factory | Incoming investigation squad redirected 17761 | -4/Factory | Entered Upper Caves 17870 | -4/Upper Caves | Learned Research non-interactive machine intel 17935 | -4/Upper Caves | Spotted B-86 Titan 17936 | -4/Upper Caves | Identified Transdimensional Reconstructor 17936 | -4/Upper Caves | Warped through subspace 18110 | -4/Upper Caves | Learned location of Testing (-3) 18126 | -4/Upper Caves | Attracted the attention of an 0b10 outpost 18200 | -4/Upper Caves | Discovered new exit (range 9) 18227 | -4/Upper Caves | Entered another Upper Caves area 18227 | -4/Upper Caves | Accompanied by 1 ally 18238 | -4/Upper Caves | Build established: Executioner 18488 | -4/Upper Caves | Discovered new exit (range 6) 18557 | -4/Upper Caves | Entered Warlord 18603 | -4/Warlord | System corruption cleaned by Quarantine Array 18640 | -4/Warlord | Opened Warlord's prototype stash 18650 | -4/Warlord | Found Prototype Device 18650 | -4/Warlord | Identified Exp. Phase Shifter 18827 | -4/Warlord | Met Warlord 18836 | -4/Warlord | Warlord's base attacked by MAIN.C 18928 | -4/Warlord | Found Prototype Energy Cannon 18936 | -4/Warlord | Met EX-DEC 18937 | -4/Warlord | Identified Vortex Cannon 18939 | -4/Warlord | Found Prototype Energy Cannon 18977 | -4/Warlord | Found Vortex Cannon 19134 | -4/Warlord | Warlord forces counterattacked 19139 | -4/Warlord | Destroyed O5-P9Z(g) 19202 | -4/Warlord | Lost 9 allies 19219 | -4/Warlord | Build established: Derelict-Executioner 19220 | -4/Warlord | Spotted Striker 19245 | -4/Warlord | Destroyed 7 combat bots 19259 | -4/Warlord | Discovered new exit (range 15) 19276 | -4/Warlord | Destroyed 7 combat bots 19280 | -4/Warlord | Lost 4 allies 19289 | -4/Warlord | Entered Proximity Caves 19523 | -3/Proximity Caves | Build established: Scavenger-Executioner 19525 | -3/Proximity Caves | Spotted B-86 Titan 19538 | -3/Proximity Caves | Destroyed B-86 Titan 19729 | -3/Proximity Caves | Lost 4 parts (4w) 19805 | -3/Proximity Caves | Attracted the attention of an 0b10 outpost 19825 | -3/Proximity Caves | Core integrity fell below 50% 19885 | -3/Proximity Caves | Identified BFG-9k Vortex Edition 19911 | -3/Proximity Caves | Lost 12 parts (1p1n1u9w) 19913 | -3/Proximity Caves | Destroyed 11 combat bots 19970 | -3/Proximity Caves | Discovered new exit (range 8) 19993 | -3/Proximity Caves | Entered Research 19993 | -3/Research | Accompanied by 2 allies 19993 | -3/Research | Evolved 2 slots: Weapon x2 19994 | -3/Research | Identified exit to Armory 19996 | -3/Research | Loaded intel: 86 non-interactive machine locations 20107 | -3/Research | Build established: Mutant 20128 | -3/Research | Spotted B-86 Titan 20457 | -3/Research | Found Gamma Bomb Array 20504 | -3/Research | Build established: Scavenger-Gunner 20767 | -3/Research | Spotted B-86 Titan 20822 | -3/Research | Build established: Scavenger-Executioner 21047 | -3/Research | Lost 6 parts (1p1n4w) 21160 | -3/Research | System corruption reached 10% 21178 | -3/Research | Lost 6 parts (2p4w) 21355 | -3/Research | Core integrity fell below 50% 21398 | -3/Research | Lost 3 parts (3w) 21482 | -3/Research | Found Exp. Hacking Suite 21721 | -3/Research | Lost 4 parts (4w) 21743 | -3/Research | First assault squad dispatched 21866 | -3/Research | Incoming assault squad redirected 21941 | -3/Research | Lost 10 parts (1p2n1u6w) 22006 | -3/Research | Incoming assault squad redirected 22021 | -3/Research | Core integrity fell below 20% 22051 | -3/Research | Lost 3 parts (1n1u1w) 22239 | -3/Research | Lost 4 parts (1p1n1u1w) 22393 | -3/Research | Repaired Myomer Leg+ 22488 | -3/Research | Central database locked down 22725 | -3/Research | Destroyed by P-80 Master with Gamma Rifle Last Messages --------------- 22621_ Destroyed Hpw. Tractor Beam. 22625_ Destroyed Lgt. Ion Engine. 22625_ K-01 Serf suffers critical hit (Destroy). 22625_ K-01 Serf destroyed. 22625_ Reaction Chamber disabled. 22628_ Acquired 10 matter. 22632_ Acquired Wheel. 22634_ Dropped Myomer Leg+. 22648_ System corrupted: Component data lost. 22650_ Acquired 35 matter. 22655_ ALERT: Potential suspicious activity detected, Programmers report to Research Zone 2Q. 22663_ ALERT: Security rotation in progress. 22695_ System corrupted: FCS attempts to trigger Hvy. Dispersion Rifle. 22695_ System corrupted: Hvy. Dispersion Rifle misfires. 22698_ Slug penetrates Wall. 22711_ System corrupted: Matter fused (-5). 22713_ Door malfunctions. 22714_ P-80 Master suffers critical hit (Destroy). 22714_ Destroyed Mic. Antimatter Reactor. Map ----- +----------------------------------------------------+ | | | | | | | ?????????????????????????????????????????????????? | | ?????????????????????????????????????????????????? | | ?????????????????????????????????????????????????? | | ?????????????????????????????????????????????????? | | ?????????????????????????????????????????????????? | | ?????????????????????????????????????????????????? | | ?????????????????????????????????????????????????? | | ????????????????????????#+???????????????????????? | | ???????????????????????? ???????????????????????? | | ???????????????????????? ???????????????????????? | | ???????????????????????? ???????????????????????? | | ???????????????????????? ???????????????????????? | | ???????????????????????? ???????????????????????? | | ???????????????????????? ???????????????????????? | | ???????????????????????? #??????????????????????? | | ????????????????????????# #??????????????????????? | | ?????????????????######## #????"""????????????#### | | ?????????????????# # #????""""??????????# | | ?????????????????# # #????""""??????????# | | ?????????????????# # ?????"""??????????# | | ?????????????????# # ###????????????????+ | | /????????????????# # T"#????????????????# " | | ?????????????????# /@""#????????????????# " | | ?????????????????# u# ###??????????####### " | | ?????????????????# #p#### / = " | | ???????########### + " | | ???????# # # | | ???????# # ###### | | ???????# """ # /#?????? ### | | ???????# """" # #???????? #???# | | ???????# """" #####/#######????#???# | | ???????# """ #H * #? ????# | | ???????# " #? ????# | | ???????# # """ """ #? ????# | | ?????########+#### """ """???? ????# | | ?????# # """ """ ## ????# | | ?????# # ## #???# | | ????# " + ## #???# | | ???# "%" # """ """ ?# #???#! | | ???# ###+## # """ """???# #???# | | ??# # # # """ """???# #???# | | ### # + / ??? ?????# #???# | | # # # ??? ?????# #???########+### | | # # ####??????????# ########### | | # # #?????????????# # #% | | % ###### #?????????????# # #% | | ###/#######?# #?????????????# #""" # | +----------------------------------------------------+ Best States ------------- Heat Dissipation 104 Coolant Potential 100 Energy Generation 29 Energy Capacity 940 Matter Stores 300 Matter Capacity 600 Sight Range 20 Terrain Scan Density 10 Power Amplification 40 Base Temperature (-) 200 Armor Coverage 450 Resistance: KI 25 Propulsion Shielding 33 Evasion (%) 42 Targeting Accuracy 8 Core Analysis 6 Recoil Reduction 2 Matter Filtering 30 Salvage Targeting 3 Item Schematics ----------------- Combat Drone Bay | -7/Data Miner | Free Lgt. Regenerative Plating | -7/Data Miner | Free Cld. Cesium-ion Thruster | -7/Data Miner | Free Gravity Neutralizer | -7/Data Miner | Free Cld. Plasma Cannon | -7/Data Miner | Free Arm. Medium Treads | -7/Data Miner | Free Adv. Recoil Stabilizer | -7/Data Miner | Free Mass Driver | -7/Data Miner | Free HERF Cannon | -7/Data Miner | Free Assault Drone Bay | -5/Zhirov | Free Exp. Heat Sink | -5/Zhirov | Free Exp. Optical Array | -5/Zhirov | Free Imp. Arc Thrower | -5/Zhirov | Free Robot Schematics ------------------ L-41 Fighter | -7/Data Miner | Free B-48 Gladiator | -7/Data Miner | Free I-36 Angel | -7/Data Miner | Free D-53 Grenadier | -7/Data Miner | Free S-27 Virus | -7/Data Miner | Free Fabricated ------------ Nothing Repaired ---------- Lgt. Treads | 5% | -10/Materials Myomer Leg | 10% | -3/Research Studied --------- Com. Wheel | -8/Materials | Hacked Lgt. Treads | -8/Materials | Hacked Imp. Treads | -8/Materials | Hacked Minigun | -8/Materials | Hacked Hvy. Assault Rifle | -7/Factory | Hacked Gatling Laser | -7/Factory | Hacked Gauss Rifle | -7/Factory | Hacked Arm. Treads | -7/Factory | Hacked Autogun | -5/Factory | Hacked Arm. Huge Wheel | -4/Factory | Hacked Myomer Leg | -3/Research | Hacked Alien Tech Used ----------------- Integrated Dissipator Transdimensional Reconstructor Achievements -------------- The Slayer Has Control Challenges ------------ None Game ------ Seed SiegeMicrowarpShockpuncher Manual? 0 Play Time 03:07:13 Cumulative 665.5 hours Start 2026.09.11 @ 12:01:11 End 2026.09.11 @ 15:44:04 Sessions 1 Manual Loads 0 Difficulty Rogue Special Mode None Game No. 294 Rogue 294 Adventurer 0 Explorer 0 Win Type - Total 42 Types 20/5/6/2/1/2/2/2/1/1 Lore% 93 Gallery% 83 Achievement% 80 Wizard Run 0 Options --------- Layout 0 ASCII 0 Keyboard 1 Movement Arrows Keybinds 0 Fullscreen 2 Font 18/Terminus Map View 76x50 Zoom Use 0% Tactical HUD 1 Map Filters BRIGHTNESS(90)|SATURATION(90) Filters NONE Steam 1 RUN: 6d7c6525-16a5-4ae4-be3d-d11335543197